fUSD/lending_fUSD_20240429
["ID","MTS","AMOUNT","RATE_DAILY","PERIOD"]
[324906469,1714407056698,-500.0,0.00012588,2]
[324906470,1714407056707,-639.07,0.00012588,2]
[324906471,1714407056716,-500.0,0.00012588,2]
[324906472,1714407056726,-650.21,0.00012588,2]
[324906473,1714407056735,-1888.91,0.00012588,2]
[324906474,1714407056745,-876.37,0.00012588,2]
[324906475,1714407056755,-836.76,0.00012588,2]
[324906476,1714407056764,-696.58,0.00012588,2]
[324906477,1714407056774,-500.0,0.00012588,2]
[324906478,1714407056784,-1010.3,0.00012588,2]
[324906479,1714407056794,-500.0,0.00012588,2]
[324906480,1714407056803,-500.0,0.00012588,2]
[324906481,1714407056813,-500.0,0.00012588,2]
[324906482,1714407056823,-634.45,0.00012588,2]
[324906483,1714407056835,-500.0,0.00012588,2]
[324906484,1714407056844,-500.0,0.00012588,2]
[324906485,1714407056854,-552.22401656,0.00012588,2]
[324906486,1714407056864,-500.0,0.00012588,2]
[324906487,1714407056874,-500.0,0.00012588,2]
[324906488,1714407056883,-500.0,0.00012588,2]
[324906489,1714407056892,-500.0,0.00012588,2]
[324906490,1714407056902,-1279.66,0.00012588,2]
[324906491,1714407056911,-500.0,0.00012588,2]
[324906492,1714407056920,-1422.26,0.00012588,2]
[324906493,1714407056931,-521.96,0.00012588,2]
[324906494,1714407056940,-500.0,0.00012588,2]
[324906495,1714407056950,-1496.33,0.00012588,2]
[324906496,1714407056959,-500.0,0.00012588,2]
[324906497,1714407056969,-760.6,0.00012588,2]
[324906498,1714407056978,-500.0,0.00012588,2]
[324906499,1714407056988,-833.86,0.00012588,2]
[324906500,1714407056998,-500.0,0.00012588,2]
[324906501,1714407057008,-1261.83,0.00012588,2]
[324906502,1714407057018,-1600.4,0.00012588,2]
[324906503,1714407057028,-500.0,0.00012588,2]
[324906504,1714407057040,-720.41,0.00012588,2]
[324906505,1714407057052,-578.63,0.00012588,2]
[324906506,1714407057062,-500.0,0.00012588,2]
[324906507,1714407057071,-500.0,0.00012588,2]
[324906508,1714407057081,-500.0,0.00012588,2]
[324906509,1714407057092,-1119.89426824,0.00012609,2]
[324906510,1714407057102,-6568.1005473,0.00012652,2]
[324906511,1714407057112,-500.0,0.00012659,2]
[324906512,1714407057124,-150.0,0.0001274,2]
[324906513,1714407057135,-173.54406333,0.00012762,2]
[324906514,1714407057144,-300.0,0.0001279,2]
[324906515,1714407057153,-4688.61693063,0.00012795,2]
[324906516,1714407057164,-309.78504138,0.00012802,2]
[324906517,1714407057174,-183.04,0.00012805,2]
[324906518,1714407057186,-150.0,0.0001284,2]
[324906519,1714407057196,-592.0,0.00012849,2]
[324906520,1714407057206,-150.0,0.00012852,2]
[324906521,1714407057215,-7159.0023266,0.00012853,2]
[324906522,1714407057225,-765.0,0.00012855,2]
[324906523,1714407057235,-1002.7,0.0001286,2]
[324906524,1714407057244,-1093.61,0.0001286,2]
[324906525,1714407057254,-659.81,0.0001286,2]
[324906526,1714407057263,-987.34,0.0001286,2]
[324906527,1714407057273,-749.03,0.0001286,2]
[324906528,1714407057295,-500.0,0.0001286,2]
[324906529,1714407057305,-500.0,0.0001286,2]
[324906530,1714407057315,-500.0,0.0001286,2]
[324906531,1714407057324,-500.0,0.0001286,2]
[324906532,1714407057335,-1202.59,0.0001286,2]
[324906533,1714407057345,-539.12,0.0001286,2]
[324906534,1714407057354,-765.56,0.0001286,2]
[324906535,1714407057364,-500.0,0.0001286,2]
[324906536,1714407057373,-819.6,0.0001286,2]
[324906537,1714407057382,-1810.26,0.0001286,2]
[324906538,1714407057392,-500.0,0.0001286,2]
[324906539,1714407057401,-1017.09,0.0001286,2]
[324906540,1714407057411,-658.85,0.0001286,2]
[324906541,1714407057420,-500.0,0.0001286,2]
[324906542,1714407057431,-500.0,0.0001286,2]
[324906543,1714407057441,-832.74,0.0001286,2]
[324906544,1714407057453,-1100.63,0.0001286,2]
[324906545,1714407057462,-779.62764298,0.0001286,2]
[324906546,1714407057489,-1468.68023842,0.0001286,2]
[324906547,1714407058437,-459.4508895,0.00012312,2]
[324906548,1714407058451,-64.64924722,0.00012312,2]
[324906549,1714407058461,-360.4466001,0.00012312,2]
[324906550,1714407058474,-563.73663686,0.00012312,2]
[324906551,1714407058485,-988.3121186,0.0001286,2]
[324906552,1714407058494,-500.0,0.0001286,2]
[324906553,1714407058504,-500.0,0.0001286,2]
[324906554,1714407058516,-1301.64,0.0001286,2]
[324906555,1714407058525,-958.55,0.0001286,2]
[324906556,1714407058535,-1054.71,0.0001286,2]
[324906557,1714407058545,-1306.47,0.0001286,2]
[324906558,1714407058554,-877.72,0.0001286,2]
[324906559,1714407058565,-903.41,0.0001286,2]
[324906560,1714407058575,-839.8,0.0001286,2]
[324906561,1714407058584,-1246.18,0.0001286,2]
[324906562,1714407058594,-564.91,0.0001286,2]
[324906563,1714407058604,-832.73,0.0001286,2]
[324906564,1714407058614,-1377.6,0.0001286,2]
[324906565,1714407058623,-1078.1,0.0001286,2]
[324906566,1714407058633,-764.41,0.0001286,2]
[324906567,1714407058643,-898.64,0.0001286,2]
[324906568,1714407058653,-500.0,0.0001286,2]
[324906569,1714407058663,-658.09,0.0001286,2]
[324906570,1714407058672,-919.3,0.0001286,2]
[324906571,1714407058682,-1652.49,0.0001286,2]
[324906572,1714407058691,-500.0,0.0001286,2]
[324906573,1714407058702,-596.83,0.0001286,2]
[324906574,1714407058711,-841.0,0.0001286,2]
[324906575,1714407058721,-500.0,0.0001286,2]
[324906576,1714407058730,-500.0,0.0001286,2]
[324906577,1714407058740,-500.0,0.0001286,2]
[324906578,1714407058748,-532.21,0.0001286,2]
[324906579,1714407058758,-500.0,0.0001286,2]
[324906580,1714407058768,-500.0,0.0001286,2]
[324906581,1714407058779,-2563.34,0.0001286,2]
[324906582,1714407058788,-500.0,0.0001286,2]
[324906583,1714407058797,-500.0,0.0001286,2]
[324906584,1714407058807,-959.87,0.0001286,2]
[324906585,1714407058816,-2679.75,0.0001286,2]
[324906586,1714407058825,-518.08,0.0001286,2]
[324906587,1714407058835,-997.79,0.0001286,2]
[324906588,1714407058844,-837.29,0.0001286,2]
[324906589,1714407058854,-500.0,0.0001286,2]
[324906590,1714407058864,-500.0,0.00012861,2]
[324906591,1714407058873,-500.0,0.00012861,2]
[324906592,1714407058882,-500.0,0.00012861,2]
[324906593,1714407058891,-599.35,0.00012861,2]
[324906594,1714407058901,-500.0,0.00012861,2]
[324906595,1714407058911,-701.9,0.00012861,2]
[324906596,1714407058921,-575.92,0.00012861,2]
[324906597,1714407058930,-500.0,0.00012861,2]
[324906598,1714407058939,-728.07,0.00012861,2]
[324906599,1714407058949,-500.0,0.00012861,2]
[324906600,1714407058958,-533.75,0.00012861,2]
[324906601,1714407058968,-500.0,0.00012861,2]
[324906602,1714407058977,-466.1,0.00012861,2]
[324906603,1714407058986,-500.0,0.00012861,2]
[324906604,1714407058996,-500.0,0.00012861,2]
[324906605,1714407059005,-500.0,0.00012861,2]
[324906606,1714407059014,-306.54,0.00012861,2]
[324906607,1714407059027,-500.0,0.00012861,2]
[324906608,1714407059036,-500.0,0.00012861,2]
[324906609,1714407059046,-500.0,0.00012861,2]
[324906610,1714407059060,-500.0,0.00012861,2]
[324906611,1714407059070,-500.0,0.00012861,2]
[324906612,1714407059079,-500.0,0.00012861,2]
[324906613,1714407059089,-500.0,0.00012861,2]
[324906614,1714407059099,-500.0,0.00012861,2]
[324906615,1714407059109,-500.0,0.00012861,2]
[324906616,1714407059122,-500.0,0.00012861,2]
[324906617,1714407059136,-1158.5,0.00012861,2]
[324906618,1714407059146,-500.0,0.00012861,2]
[324906619,1714407059156,-500.0,0.00012861,2]
[324906620,1714407059166,-500.0,0.00012861,2]
[324906621,1714407059176,-989.11,0.00012861,2]
[324906622,1714407059185,-506.63,0.00012861,2]
[324906623,1714407059196,-500.0,0.00012861,2]
[324906624,1714407059205,-500.0,0.00012861,2]
[324906625,1714407059215,-500.0,0.00012861,2]
[324906626,1714407059227,-572.9,0.00012861,2]
[324906627,1714407059238,-500.0,0.00012861,2]
[324906628,1714407059248,-500.0,0.00012861,2]
[324906629,1714407059258,-291.03,0.00012861,2]
[324906630,1714407059267,-500.0,0.00012861,2]
[324906631,1714407059278,-500.0,0.00012861,2]
[324906632,1714407059288,-500.0,0.00012861,2]
[324906633,1714407059298,-544.4,0.00012861,2]
[324906634,1714407059308,-559.7,0.00012861,2]
[324906635,1714407059317,-272.79,0.00012861,2]
[324906636,1714407059326,-607.64518986,0.00012861,2]
[324906637,1714407059337,-500.0,0.00012861,2]
[324906638,1714407059347,-500.0,0.00012861,2]
[324906639,1714407059356,-543.13,0.00012861,2]
[324906640,1714407059366,-500.0,0.00012861,2]
[324906641,1714407059375,-500.0,0.00012861,2]
[324906642,1714407059384,-597.82,0.00012861,2]
[324906643,1714407059395,-500.0,0.00012861,2]
[324906644,1714407059404,-500.0,0.00012861,2]
[324906645,1714407059414,-925.43,0.00012861,2]
[324906646,1714407059423,-500.0,0.00012861,2]
[324906647,1714407059433,-500.0,0.00012861,2]
[324906648,1714407059442,-500.0,0.00012861,2]
[324906649,1714407059452,-500.0,0.00012861,2]
[324906650,1714407059462,-500.0,0.00012861,2]
[324906651,1714407059471,-500.0,0.00012861,2]
[324906652,1714407059480,-220.5104497,0.00012861,2]
[324906653,1714407059490,-614.74,0.00012861,2]
[324906654,1714407059499,-976.38,0.00012861,2]
[324906655,1714407059509,-500.0,0.00012861,2]
[324906656,1714407059519,-500.0,0.00012861,2]
[324906657,1714407059682,-760.28,0.00012861,2]
[324906658,1714407059692,-500.0,0.00012861,2]
[324906659,1714407059701,-500.0,0.00012861,2]
[324906660,1714407059711,-1521.42,0.00012861,2]
[324906661,1714407059720,-500.0,0.00012861,2]
[324906662,1714407059730,-500.0,0.00012861,2]
[324906663,1714407059740,-500.0,0.00012861,2]
[324906664,1714407059753,-500.0,0.00012861,2]
[324906665,1714407059762,-500.0,0.00012861,2]
[324906666,1714407059771,-500.0,0.00012861,2]
[324906667,1714407059780,-5772.4,0.00012861,2]
[324906668,1714407059790,-500.0,0.00012861,2]
[324906669,1714407059799,-500.0,0.00012861,2]
[324906670,1714407059808,-500.9482773,0.00012861,2]
[324906671,1714407059817,-500.0,0.00012861,2]
[324906672,1714407059827,-500.0,0.00012861,2]
[324906673,1714407059836,-838.86,0.00012861,2]
[324906674,1714407059846,-957.57,0.00012861,2]
[324906675,1714407059855,-215.36955476,0.00012861,2]
[324906676,1714407059864,-500.0,0.00012861,2]
[324906677,1714407059874,-1108.8,0.00012861,2]
[324906678,1714407059883,-500.0,0.00012861,2]
[324906679,1714407059892,-500.0,0.00012861,2]
[324906680,1714407059901,-500.0,0.00012861,2]
[324906681,1714407059911,-500.0,0.00012861,2]
[324906682,1714407059921,-500.0,0.00012861,2]
[324906683,1714407059932,-842.79,0.00012861,2]
[324906684,1714407059941,-500.0,0.00012861,2]
[324906685,1714407059951,-500.0,0.00012861,2]
[324906686,1714407059961,-500.0,0.00012861,2]
[324906687,1714407059971,-675.25,0.00012861,2]
[324906688,1714407059979,-500.0,0.00012861,2]
[324906689,1714407059989,-500.0,0.00012861,2]
[324906690,1714407059998,-500.0,0.00012861,2]
[324906691,1714407060008,-500.0,0.00012861,2]
[324906692,1714407060018,-500.0,0.00012861,2]
[324906693,1714407060027,-500.0,0.00012861,2]
[324906694,1714407060037,-1336.89,0.00012861,2]
[324906695,1714407060052,-217.9,0.00012861,2]
[324906696,1714407060061,-637.43,0.00012861,2]
[324906697,1714407060070,-500.0,0.00012861,2]
[324906698,1714407060080,-500.0,0.00012861,2]
[324906699,1714407060090,-500.0,0.00012861,2]
[324906700,1714407060099,-218.83538737,0.00012861,2]
[324906701,1714407060109,-500.0,0.00012861,2]
[324906702,1714407060119,-500.0,0.00012861,2]
[324906703,1714407060129,-529.86,0.00012861,2]
[324906704,1714407060139,-855.53,0.00012861,2]
[324906705,1714407060148,-500.0,0.00012861,2]
[324906706,1714407060157,-500.0,0.00012861,2]
[324906707,1714407060166,-507.44,0.00012861,2]
[324906708,1714407060175,-870.78,0.00012861,2]
[324906709,1714407060184,-500.0,0.00012861,2]
[324906710,1714407060193,-826.52,0.00012861,2]
[324906711,1714407060203,-764.14,0.00012861,2]
[324906712,1714407060213,-544.88,0.00012861,2]
[324906713,1714407060223,-6747.11,0.00012861,2]
[324906714,1714407060232,-500.0,0.00012861,2]
[324906715,1714407060241,-718.45,0.00012861,2]
[324906716,1714407060250,-607.19,0.00012861,2]
[324906717,1714407060259,-500.0,0.00012861,2]
[324906718,1714407060269,-1102.38,0.00012861,2]
[324906719,1714407060278,-562.88376164,0.00012861,2]
[324906720,1714407060288,-500.0,0.00012861,2]
[324906721,1714407060298,-595.62,0.00012861,2]
[324906722,1714407060307,-500.0,0.00012861,2]
[324906723,1714407060316,-500.0,0.00012861,2]
[324906724,1714407060324,-500.0,0.00012861,2]
[324906725,1714407060334,-500.0,0.00012861,2]
[324906726,1714407060346,-500.0,0.00012861,2]
[324906727,1714407060355,-500.0,0.00012861,2]
[324906728,1714407060365,-500.0,0.00012861,2]
[324906729,1714407060375,-500.0,0.00012861,2]
[324906730,1714407060384,-1384.02,0.00012861,2]
[324906731,1714407060393,-500.0,0.00012861,2]
[324906732,1714407060403,-535.12,0.00012861,2]
[324906733,1714407060412,-500.0,0.00012861,2]
[324906734,1714407060421,-500.0,0.00012861,2]
[324906735,1714407060430,-500.0,0.00012861,2]
[324906736,1714407060440,-500.0,0.00012861,2]
[324906737,1714407060449,-500.0,0.00012861,2]
[324906738,1714407060458,-500.0,0.00012861,2]
[324906739,1714407060467,-908.31,0.00012861,2]
[324906740,1714407060476,-500.0,0.00012861,2]
[324906741,1714407060485,-582.22609595,0.00012861,2]
[324906742,1714407060494,-500.0,0.00012861,2]
[324906743,1714407060503,-537.82,0.00012861,2]
[324906744,1714407060512,-500.0,0.00012861,2]
[324906745,1714407060521,-314.33376376,0.00012862,2]
[324906746,1714407060530,-500.0,0.00012862,2]
[324906747,1714407060540,-500.0,0.00012862,2]
[324906748,1714407060548,-549.52,0.00012862,2]
[324906749,1714407060558,-500.0,0.00012862,2]
[324906750,1714407060567,-500.0,0.00012862,2]
[324906751,1714407060576,-501.18,0.00012862,2]
[324906752,1714407060585,-500.0,0.00012862,2]
[324906753,1714407060596,-500.0,0.00012862,2]
[324906754,1714407060605,-500.0,0.00012862,2]
[324906755,1714407060614,-500.0,0.00012862,2]
[324906756,1714407060623,-500.0,0.00012862,2]
[324906757,1714407060633,-500.0,0.00012862,2]
[324906758,1714407060642,-500.0,0.00012862,2]
[324906759,1714407060651,-500.0,0.00012862,2]
[324906760,1714407060660,-500.0,0.00012862,2]
[324906761,1714407060669,-500.0,0.00012862,2]
[324906762,1714407060679,-500.0,0.00012862,2]
[324906763,1714407060688,-500.0,0.00012862,2]
[324906764,1714407060697,-500.0,0.00012862,2]
[324906765,1714407060706,-500.0,0.00012862,2]
[324906766,1714407060715,-500.0,0.00012862,2]
[324906767,1714407060725,-500.0,0.00012862,2]
[324906768,1714407060735,-635.929204,0.00012862,2]
[324906769,1714407060744,-877.39,0.00012862,2]
[324906770,1714407060754,-500.0,0.00012862,2]
[324906771,1714407060763,-500.0,0.00012862,2]
[324906772,1714407060773,-500.0,0.00012862,2]
[324906773,1714407060782,-899.56,0.00012862,2]
[324906774,1714407060791,-500.0,0.00012862,2]
[324906775,1714407060801,-500.0,0.00012862,2]
[324906776,1714407060812,-500.0,0.00012862,2]
[324906777,1714407060821,-500.0,0.00012862,2]
[324906778,1714407060830,-869.09,0.00012862,2]
[324906779,1714407060840,-500.0,0.00012862,2]
[324906780,1714407060848,-500.0,0.00012862,2]
[324906781,1714407060858,-500.0,0.00012862,2]
[324906782,1714407060867,-500.0,0.00012862,2]
[324906783,1714407060876,-755.49,0.00012862,2]
[324906784,1714407060885,-500.0,0.00012862,2]
[324906785,1714407060896,-500.0,0.00012862,2]
[324906786,1714407060906,-784.37,0.00012862,2]
[324906787,1714407060915,-500.0,0.00012862,2]
[324906788,1714407060925,-505.15784198,0.00012862,2]
[324906789,1714407060935,-581.14,0.00012862,2]
[324906790,1714407060944,-519.75,0.00012862,2]
[324906791,1714407060954,-500.0,0.00012862,2]
[324906792,1714407060964,-500.0,0.00012862,2]
[324906793,1714407060973,-500.0,0.00012862,2]
[324906794,1714407060983,-500.0,0.00012862,2]
[324906795,1714407060993,-500.0,0.00012862,2]
[324906796,1714407061002,-500.0,0.00012862,2]
[324906797,1714407061012,-500.0,0.00012862,2]
[324906798,1714407061021,-500.0,0.00012862,2]
[324906799,1714407061030,-500.0,0.00012862,2]
[324906800,1714407061043,-500.0,0.00012862,2]
[324906801,1714407061055,-500.0,0.00012862,2]
[324906802,1714407061065,-500.0,0.00012862,2]
[324906803,1714407061074,-500.0,0.00012862,2]
[324906804,1714407061085,-500.0,0.00012862,2]
[324906805,1714407061097,-500.0,0.00012862,2]
[324906806,1714407061106,-500.0,0.00012862,2]
[324906807,1714407061115,-500.0,0.00012862,2]
[324906808,1714407061125,-500.0,0.00012862,2]
[324906809,1714407061135,-539.22,0.00012862,2]
[324906810,1714407061146,-500.0,0.00012862,2]
[324906811,1714407061157,-500.0,0.00012862,2]
[324906812,1714407061167,-500.0,0.00012862,2]
[324906813,1714407061176,-500.0,0.00012862,2]
[324906814,1714407061186,-670.06,0.00012862,2]
[324906815,1714407061195,-500.0,0.00012862,2]
[324906816,1714407061204,-363.84,0.00012862,2]
[324906817,1714407061214,-934.73,0.00012862,2]
[324906818,1714407061223,-500.0,0.00012862,2]
[324906819,1714407061233,-500.0,0.00012862,2]
[324906820,1714407061243,-500.0,0.00012862,2]
[324906821,1714407061252,-515.8,0.00012862,2]
[324906822,1714407061261,-500.0,0.00012862,2]
[324906823,1714407061271,-911.29,0.00012862,2]
[324906824,1714407061282,-500.0,0.00012862,2]
[324906825,1714407061292,-692.6,0.00012862,2]
[324906826,1714407061301,-607.31,0.00012862,2]
[324906827,1714407061311,-500.0,0.00012862,2]
[324906828,1714407061320,-500.0,0.00012862,2]
[324906829,1714407061330,-500.0,0.00012862,2]
[324906830,1714407061342,-500.0,0.00012862,2]
[324906831,1714407061352,-745.29,0.00012862,2]
[324906832,1714407061362,-500.0,0.00012862,2]
[324906833,1714407061371,-931.82,0.00012862,2]
[324906834,1714407061380,-500.0,0.00012862,2]
[324906835,1714407061390,-500.0,0.00012862,2]
[324906836,1714407061399,-546.23,0.00012862,2]
[324906837,1714407061409,-170.15,0.00012862,2]
[324906838,1714407061418,-500.0,0.00012862,2]
[324906839,1714407061427,-500.0,0.00012862,2]
[324906840,1714407061436,-500.0,0.00012862,2]
[324906841,1714407061445,-500.0,0.00012862,2]
[324906842,1714407061456,-500.0,0.00012862,2]
[324906843,1714407061465,-500.0,0.00012862,2]
[324906844,1714407061475,-500.0,0.00012862,2]
[324906845,1714407061484,-500.0,0.00012862,2]
[324906846,1714407061494,-500.0,0.00012862,2]
[324906847,1714407061504,-500.0,0.00012862,2]
[324906848,1714407061514,-803.75,0.00012862,2]
[324906849,1714407061523,-567.32,0.00012862,2]
[324906850,1714407061533,-500.0,0.00012862,2]
[324906851,1714407061542,-500.0,0.00012862,2]
[324906852,1714407061551,-500.0,0.00012862,2]
[324906853,1714407061560,-640.68,0.00012862,2]
[324906854,1714407061570,-500.0,0.00012862,2]
[324906855,1714407061580,-703.98,0.00012862,2]
[324906856,1714407061589,-549.62,0.00012862,2]
[324906857,1714407061599,-882.8,0.00012862,2]
[324906858,1714407061607,-1066.04,0.00012862,2]
[324906859,1714407061744,-500.0,0.00012862,2]
[324906860,1714407061754,-982.62,0.00012862,2]
[324906861,1714407061764,-500.0,0.00012862,2]
[324906862,1714407061774,-639.07,0.00012862,2]
[324906863,1714407061784,-500.0,0.00012862,2]
[324906864,1714407061794,-650.21,0.00012862,2]
[324906865,1714407061804,-1888.91,0.00012862,2]
[324906866,1714407061814,-876.37,0.00012862,2]
[324906867,1714407061825,-836.76,0.00012862,2]
[324906868,1714407061835,-696.58,0.00012862,2]
[324906869,1714407061850,-500.0,0.00012862,2]
[324906870,1714407061861,-1010.3,0.00012862,2]
[324906871,1714407061874,-500.0,0.00012862,2]
[324906872,1714407061885,-500.0,0.00012862,2]
[324906873,1714407061895,-500.0,0.00012862,2]
[324906874,1714407061905,-634.45,0.00012862,2]
[324906875,1714407061914,-500.0,0.00012862,2]
[324906876,1714407061924,-500.0,0.00012862,2]
[324906877,1714407061934,-500.0,0.00012862,2]
[324906878,1714407061943,-500.0,0.00012862,2]
[324906879,1714407061952,-519.12809968,0.00012862,2]
[324906880,1714407061961,-1279.66,0.00012862,2]
[324906881,1714407061971,-500.0,0.00012862,2]
[324906882,1714407061980,-1422.26,0.00012862,2]
[324906883,1714407061989,-521.96,0.00012862,2]
[324906884,1714407061998,-500.0,0.00012862,2]
[324906885,1714407062008,-1496.33,0.00012862,2]
[324906886,1714407062017,-500.0,0.00012862,2]
[324906887,1714407062026,-760.6,0.00012862,2]
[324906888,1714407062036,-500.0,0.00012862,2]
[324906889,1714407062051,-833.86,0.00012862,2]
[324906890,1714407062061,-500.0,0.00012862,2]
[324906891,1714407062071,-1261.83,0.00012862,2]
[324906892,1714407062081,-1600.4,0.00012862,2]
[324906893,1714407062096,-500.0,0.00012862,2]
[324906894,1714407062105,-720.41,0.00012862,2]
[324906895,1714407062114,-578.63,0.00012862,2]
[324906896,1714407062123,-500.0,0.00012862,2]
[324906897,1714407062134,-500.0,0.00012862,2]
[324906898,1714407062144,-300.0,0.00012866,2]
[324906899,1714407062154,-150.0,0.00012877,2]
[324906900,1714407062163,-10000.0,0.00012888,3]
[324906901,1714407062173,-500.0,0.00012889,2]
[324906902,1714407062182,-500.0,0.00012889,2]
[324906903,1714407062192,-250000.0,0.0001289,2]
[324906904,1714407062202,-1000.0,0.00012895,2]
[324906905,1714407062212,-500.0,0.00012895,2]
[324906906,1714407062221,-1000.0,0.00012896,2]
[324906907,1714407062231,-1000.0,0.00012896,2]
[324906908,1714407062240,-1000.0,0.00012896,2]
[324906909,1714407062250,-500.0,0.00012896,2]
[324906910,1714407062259,-500.0,0.00012896,2]
[324906911,1714407062268,-217.17006799,0.00012898,2]
[324906912,1714407062278,-201.41139642,0.00012898,2]
[324906913,1714407062288,-196.22365687,0.00012898,2]
[324906914,1714407062297,-649.43817822,0.00012898,2]
[324906915,1714407062307,-1000.0,0.00012899,2]
[324906916,1714407062317,-1000.0,0.00012899,2]
[324906917,1714407062327,-649.43817821,0.00012899,2]
[324906918,1714407062336,-217.17006798,0.000129,2]
[324906919,1714407062349,-196.22365687,0.000129,2]
[324906920,1714407062358,-649.43817821,0.000129,2]
[324906921,1714407062367,-150.0,0.00012903,2]
[324906922,1714407062377,-252.0,0.0001295,2]
[324906923,1714407062387,-345.54,0.00012957,2]
[324906924,1714407062396,-500.0,0.00012978,2]
[324906925,1714407062406,-39642.1150538,0.00012979,2]
[324906926,1714407062416,-44526.9254396,0.00012979,2]
[324906927,1714407062426,-49411.7358254,0.00012979,2]
[324906928,1714407062436,-54296.5462112,0.00012979,2]
[324906929,1714407062446,-59181.356597,0.00012979,2]
[324906930,1714407062455,-275.63691,0.00012979,2]
[324906931,1714407062465,-162.184171,0.00012979,2]
[324906932,1714407062474,-197.908089,0.00012979,2]
[324906933,1714407062483,-188.295465,0.00012979,2]
[324906934,1714407062493,-188.295465,0.00012979,2]
[324906935,1714407062502,-151.0,0.00012979,2]
[324906936,1714407062512,-151.0,0.00012979,2]
[324906937,1714407062521,-653.723959,0.00012979,2]
[324906938,1714407062531,-151.0,0.00012979,2]
[324906939,1714407062540,-653.723959,0.00012979,2]
[324906940,1714407062550,-151.0,0.00012979,2]
[324906941,1714407062559,-985.709754,0.00012979,2]
[324906942,1714407062569,-151.0,0.00012979,2]
[324906943,1714407062579,-985.709754,0.00012979,2]
[324906944,1714407062590,-151.0,0.00012979,2]
[324906945,1714407062600,-6124.1286308,0.00012979,2]
[324906946,1714407062609,-6923.1827204,0.00012979,2]
[324906947,1714407062619,-7722.23681,0.00012979,2]
[324906948,1714407062628,-8521.2908996,0.00012979,2]
[324906949,1714407062638,-9320.3449892,0.00012979,2]
[324906950,1714407062647,-173.480092,0.00012979,2]
[324906951,1714407062657,-151.0,0.00012979,2]
[324906952,1714407062666,-151.0,0.00012979,2]
[324906953,1714407062675,-173.13,0.00012988,2]
[324906954,1714407062685,-151.0,0.00012988,2]
[324906955,1714407062695,-151.0,0.00012988,2]
[324906956,1714407062704,-151.0,0.00012988,2]
[324906957,1714407062713,-151.0,0.00012988,2]
[324906958,1714407062723,-151.0,0.00012988,2]
[324906959,1714407062732,-151.0,0.00012988,2]
[324906960,1714407062742,-151.0,0.00012988,2]
[324906961,1714407062751,-163.730999,0.00012988,2]
[324906962,1714407062761,-163.730999,0.00012988,2]
[324906963,1714407062771,-220.622358,0.00012988,2]
[324906964,1714407062780,-220.622358,0.00012988,2]
[324906965,1714407062790,-34757.3046681,0.00012988,2]
[324906966,1714407062799,-151.0,0.00012988,2]
[324906967,1714407062809,-151.0,0.00012988,2]
[324906968,1714407062818,-151.0,0.00012988,2]